[Event "Early-Titled-Tuesday-Blitz-February-06-2024"]
[Site "Chess.com"]
[Date "2024.02.06"]
[Round "4"]
[White "RantomOpening"]
[Black "B_nn_t"]
[Result "1-0"]
[WhiteElo "2553"]
[BlackElo "2380"]
[TimeControl "180+1"]
[EndTime "8:40:00 PST"]
[Termination "RantomOpening won on time"]

1. e4 {[%clk 0:03:00.5]} 1... c5 {[%clk 0:02:55.6]} 2. c3 {[%clk 0:03:00.8]}
2... e5 {[%clk 0:02:54.9]} 3. Nf3 {[%clk 0:03:00.9]} 3... Nc6 {[%clk 0:02:54.7]}
4. d4 {[%clk 0:03:01.2]} 4... cxd4 {[%clk 0:02:54.6]} 5. cxd4 {[%clk 0:03:02.1]}
5... exd4 {[%clk 0:02:55.2]} 6. Nxd4 {[%clk 0:03:03]} 6... Nf6 {[%clk
0:02:55.2]} 7. Nxc6 {[%clk 0:03:02.8]} 7... dxc6 {[%clk 0:02:55.1]} 8. Qxd8+
{[%clk 0:03:02.6]} 8... Kxd8 {[%clk 0:02:56]} 9. Nc3 {[%clk 0:03:02.8]} 9... Bb4
{[%clk 0:02:52.4]} 10. Bd3 {[%clk 0:03:03.1]} 10... Be6 {[%clk 0:02:47.8]} 11.
f3 {[%clk 0:03:03.2]} 11... h6 {[%clk 0:02:43.5]} 12. Bf4 {[%clk 0:03:03]} 12...
Ke7 {[%clk 0:02:42.3]} 13. Ke2 {[%clk 0:03:02.8]} 13... Rhd8 {[%clk 0:02:37.4]}
14. Rhd1 {[%clk 0:03:02.5]} 14... Rd7 {[%clk 0:02:37]} 15. h4 {[%clk 0:03:01.5]}
15... Rad8 {[%clk 0:02:35.5]} 16. Bc2 {[%clk 0:02:54.9]} 16... Bc4+ {[%clk
0:02:31.9]} 17. Kf2 {[%clk 0:02:52.9]} 17... Bc5+ {[%clk 0:02:29.8]} 18. Be3
{[%clk 0:02:52.8]} 18... Bxe3+ {[%clk 0:02:25.6]} 19. Kxe3 {[%clk 0:02:53.7]}
19... b5 {[%clk 0:02:24.2]} 20. b3 {[%clk 0:02:46.2]} 20... Be6 {[%clk
0:02:23.4]} 21. Ne2 {[%clk 0:02:37.1]} 21... c5 {[%clk 0:02:20.7]} 22. Nc3
{[%clk 0:02:36.7]} 22... a6 {[%clk 0:02:20]} 23. g4 {[%clk 0:02:34]} 23... c4
{[%clk 0:02:18]} 24. b4 {[%clk 0:02:31.7]} 24... g5 {[%clk 0:02:10.2]} 25. hxg5
{[%clk 0:02:31.2]} 25... hxg5 {[%clk 0:02:11.1]} 26. a4 {[%clk 0:02:31.1]} 26...
Rxd1 {[%clk 0:02:06.5]} 27. Rxd1 {[%clk 0:02:29.7]} 27... Rb8 {[%clk 0:02:05.8]}
28. axb5 {[%clk 0:02:27.3]} 28... axb5 {[%clk 0:02:06.7]} 29. Ra1 {[%clk
0:02:27.5]} 29... Bd7 {[%clk 0:02:02.1]} 30. Kd4 {[%clk 0:02:25.7]} 30... Rh8
{[%clk 0:01:53.3]} 31. e5 {[%clk 0:02:23]} 31... Ne8 {[%clk 0:01:49.9]} 32. Nd5+
{[%clk 0:02:22.9]} 32... Kf8 {[%clk 0:01:45.5]} 33. Bf5 {[%clk 0:01:57.1]} 33...
Bc6 {[%clk 0:01:37.1]} 34. Kc5 {[%clk 0:01:06.4]} 34... Bxd5 {[%clk 0:01:34]}
35. Kxd5 {[%clk 0:01:06.2]} 35... Rh3 {[%clk 0:01:29.5]} 36. Be4 {[%clk
0:01:05]} 36... Rh6 {[%clk 0:01:09.6]} 37. Kc5 {[%clk 0:01:01.4]} 37... Re6
{[%clk 0:00:51.6]} 38. Kxb5 {[%clk 0:00:59.2]} 38... c3 {[%clk 0:00:52]} 39. Kc4
{[%clk 0:00:57.8]} 39... Rxe5 {[%clk 0:00:52.1]} 40. Kxc3 {[%clk 0:00:57.2]}
40... Nd6 {[%clk 0:00:52.3]} 41. Kd4 {[%clk 0:00:56.7]} 41... Rb5 {[%clk
0:00:50]} 42. Rb1 {[%clk 0:00:56.9]} 42... Ke7 {[%clk 0:00:47.9]} 43. Bd3 {[%clk
0:00:56.9]} 43... Rb8 {[%clk 0:00:45.1]} 44. Kd5 {[%clk 0:00:56.6]} 44... Rd8
{[%clk 0:00:33.1]} 45. Re1+ {[%clk 0:00:43.5]} 45... Kf6 {[%clk 0:00:32.5]} 46.
Kc6 {[%clk 0:00:43]} 46... Nc8 {[%clk 0:00:27.3]} 47. Be4 {[%clk 0:00:38.3]}
47... Ne7+ {[%clk 0:00:25.8]} 48. Kc7 {[%clk 0:00:35.8]} 48... Rc8+ {[%clk
0:00:23.4]} 49. Kb7 {[%clk 0:00:35.7]} 49... Rc3 {[%clk 0:00:19.7]} 50. b5
{[%clk 0:00:35.9]} 50... Rb3 {[%clk 0:00:19.9]} 51. Rb1 {[%clk 0:00:35.7]} 51...
Rxb1 {[%clk 0:00:19.6]} 52. Bxb1 {[%clk 0:00:36.6]} 52... Nd5 {[%clk 0:00:20.2]}
53. Be4 {[%clk 0:00:35.6]} 53... Nc3 {[%clk 0:00:20.3]} 54. b6 {[%clk
0:00:36.1]} 54... Na4 {[%clk 0:00:21]} 55. Kc6 {[%clk 0:00:35.8]} 55... Ke5
{[%clk 0:00:21]} 56. b7 {[%clk 0:00:36]} 1-0

[Event "Early-Titled-Tuesday-Blitz-February-06-2024"]
[Site "Chess.com"]
[Date "2024.02.06"]
[Round "4"]
[White "InitiatingASC"]
[Black "marsofsilva"]
[Result "0-1"]
[WhiteElo "2416"]
[BlackElo "2072"]
[TimeControl "180+1"]
[EndTime "8:40:02 PST"]
[Termination "marsofsilva won on time"]

1. d4 {[%clk 0:03:00.9]} 1... d5 {[%clk 0:02:59.3]} 2. c4 {[%clk 0:02:59.8]}
2... e6 {[%clk 0:02:59.3]} 3. Nc3 {[%clk 0:02:59.5]} 3... Nf6 {[%clk 0:02:59.3]}
4. cxd5 {[%clk 0:02:58.6]} 4... exd5 {[%clk 0:02:59.8]} 5. Bg5 {[%clk
0:02:58.7]} 5... c6 {[%clk 0:02:59.9]} 6. e3 {[%clk 0:02:58.8]} 6... h6 {[%clk
0:02:59.8]} 7. Bh4 {[%clk 0:02:56.2]} 7... Be7 {[%clk 0:02:59.6]} 8. Bd3 {[%clk
0:02:55.8]} 8... O-O {[%clk 0:02:59.5]} 9. Nge2 {[%clk 0:02:54.9]} 9... Re8
{[%clk 0:02:59.3]} 10. O-O {[%clk 0:02:54.3]} 10... a5 {[%clk 0:02:55.1]} 11. a4
{[%clk 0:02:52.5]} 11... Nbd7 {[%clk 0:02:53.4]} 12. f3 {[%clk 0:02:46.8]} 12...
Nh5 {[%clk 0:02:52.3]} 13. Bf2 {[%clk 0:02:46.7]} 13... g6 {[%clk 0:02:50.7]}
14. Ng3 {[%clk 0:02:42.9]} 14... Ng7 {[%clk 0:02:46.6]} 15. e4 {[%clk
0:02:37.8]} 15... dxe4 {[%clk 0:02:43.5]} 16. fxe4 {[%clk 0:02:37.7]} 16... c5
{[%clk 0:02:39.6]} 17. Bb5 {[%clk 0:02:25.6]} 17... cxd4 {[%clk 0:02:28.3]} 18.
Bxd4 {[%clk 0:02:24.3]} 18... Ne6 {[%clk 0:02:26]} 19. Be3 {[%clk 0:02:21.3]}
19... Kg7 {[%clk 0:02:22]} 20. Qg4 {[%clk 0:02:05.4]} 20... Ne5 {[%clk
0:02:16.5]} 21. Qh3 {[%clk 0:01:27.7]} 21... Ng5 {[%clk 0:02:06]} 22. Bxg5
{[%clk 0:01:05.1]} 22... Bxh3 {[%clk 0:02:04.4]} 23. Bxe8 {[%clk 0:01:05.1]}
23... Bxg5 {[%clk 0:01:59.9]} 24. Bb5 {[%clk 0:00:58.7]} 24... Be6 {[%clk
0:01:46.9]} 25. Rad1 {[%clk 0:00:55.9]} 25... Qb6+ {[%clk 0:01:44.6]} 26. Kh1
{[%clk 0:00:55.8]} 26... Ng4 {[%clk 0:01:36]} 27. Nd5 {[%clk 0:00:49.5]} 27...
Bxd5 {[%clk 0:01:34.1]} 28. exd5 {[%clk 0:00:46.9]} 28... Nf2+ {[%clk
0:01:32.3]} 29. Rxf2 {[%clk 0:00:47.3]} 29... Qxf2 {[%clk 0:01:31.9]} 30. d6
{[%clk 0:00:47.4]} 30... Rd8 {[%clk 0:01:31.5]} 31. d7 {[%clk 0:00:43.8]} 31...
Bf4 {[%clk 0:01:13.1]} 32. Ne2 {[%clk 0:00:37.7]} 32... Bg5 {[%clk 0:00:58.9]}
33. b3 {[%clk 0:00:36.5]} 33... b6 {[%clk 0:00:51.8]} 34. Nd4 {[%clk 0:00:27.5]}
34... Qf6 {[%clk 0:00:19.2]} 35. h3 {[%clk 0:00:24.5]} 35... Rb8 {[%clk
0:00:08.7]} 36. Nc6 {[%clk 0:00:21.5]} 36... Rd8 {[%clk 0:00:08.5]} 37. Nxd8
{[%clk 0:00:18.1]} 37... Qxd8 {[%clk 0:00:09.4]} 38. Re1 {[%clk 0:00:17.7]}
38... Be7 {[%clk 0:00:07.9]} 39. Rf1 {[%clk 0:00:13.7]} 39... f5 {[%clk
0:00:05.8]} 40. Rc1 {[%clk 0:00:13.6]} 40... Qf8 {[%clk 0:00:02.6]} 41. Rc8
{[%clk 0:00:12.9]} 41... Bd8 {[%clk 0:00:03.1]} 42. Bc4 {[%clk 0:00:09.8]} 42...
Qe7 {[%clk 0:00:03]} 43. Bb5 {[%clk 0:00:06.3]} 43... Qe1+ {[%clk 0:00:02.8]}
44. Kh2 {[%clk 0:00:06]} 44... Qe5+ {[%clk 0:00:02.6]} 45. Kg1 {[%clk
0:00:06.3]} 45... Qe7 {[%clk 0:00:02.7]} 46. Kf1 {[%clk 0:00:05.6]} 46... Kf6
{[%clk 0:00:02.6]} 47. Rc6+ {[%clk 0:00:04.7]} 47... Kg7 {[%clk 0:00:02.1]} 48.
Rc8 {[%clk 0:00:04]} 48... Kf8 {[%clk 0:00:02.4]} 49. Kf2 {[%clk 0:00:01.6]}
49... Qf6 {[%clk 0:00:02.4]} 0-1

[Event "Early-Titled-Tuesday-Blitz-February-06-2024"]
[Site "Chess.com"]
[Date "2024.02.06"]
[Round "4"]
[White "FGHSMN"]
[Black "DavidGavrilescu18"]
[Result "1-0"]
[WhiteElo "2941"]
[BlackElo "2771"]
[TimeControl "180+1"]
[EndTime "8:40:03 PST"]
[Termination "FGHSMN won by resignation"]

1. d4 {[%clk 0:03:00.9]} 1... d5 {[%clk 0:02:59.8]} 2. Bf4 {[%clk 0:02:59.7]}
2... c5 {[%clk 0:02:59.5]} 3. e3 {[%clk 0:03:00.2]} 3... cxd4 {[%clk 0:03:00.1]}
4. exd4 {[%clk 0:03:00]} 4... Nc6 {[%clk 0:03:00.4]} 5. c3 {[%clk 0:02:58.1]}
5... Bf5 {[%clk 0:03:00.1]} 6. Nf3 {[%clk 0:02:56.4]} 6... e6 {[%clk 0:02:58.3]}
7. Qb3 {[%clk 0:02:45.7]} 7... Qd7 {[%clk 0:02:57.1]} 8. Bb5 {[%clk 0:02:41.6]}
8... f6 {[%clk 0:02:56.8]} 9. Nbd2 {[%clk 0:02:39.6]} 9... g5 {[%clk 0:02:56.6]}
10. Bg3 {[%clk 0:02:38.4]} 10... h5 {[%clk 0:02:56]} 11. h3 {[%clk 0:02:36.6]}
11... h4 {[%clk 0:02:55.8]} 12. Bh2 {[%clk 0:02:36.8]} 12... Bd6 {[%clk
0:02:56.1]} 13. Bxd6 {[%clk 0:02:35.1]} 13... Qxd6 {[%clk 0:02:57]} 14. c4
{[%clk 0:02:21.6]} 14... Ne7 {[%clk 0:02:56.2]} 15. cxd5 {[%clk 0:02:17.5]}
15... Nxd5 {[%clk 0:02:41.5]} 16. Nc4 {[%clk 0:02:16.2]} 16... Qc7 {[%clk
0:02:39.4]} 17. Rc1 {[%clk 0:02:08.8]} 17... O-O {[%clk 0:02:35.4]} 18. O-O
{[%clk 0:02:06.3]} 18... Rac8 {[%clk 0:02:24]} 19. Ne3 {[%clk 0:02:05.1]} 19...
Nxe3 {[%clk 0:02:12]} 20. fxe3 {[%clk 0:02:02.7]} 20... Kg7 {[%clk 0:02:11]} 21.
Rf2 {[%clk 0:01:37]} 21... Qb6 {[%clk 0:01:53.7]} 22. Re1 {[%clk 0:01:13]} 22...
a6 {[%clk 0:01:34.6]} 23. Bxc6 {[%clk 0:01:12.3]} 23... Qxb3 {[%clk 0:01:34.5]}
24. axb3 {[%clk 0:01:10.8]} 24... Rxc6 {[%clk 0:01:35]} 25. e4 {[%clk
0:01:11.2]} 25... Bg6 {[%clk 0:01:34.7]} 26. e5 {[%clk 0:01:07.8]} 26... Bf5
{[%clk 0:01:14.7]} 27. exf6+ {[%clk 0:01:06.1]} 27... Kxf6 {[%clk 0:01:15.6]}
28. d5 {[%clk 0:01:06.6]} 28... Rd6 {[%clk 0:01:08.9]} 29. dxe6 {[%clk
0:00:52.4]} 29... Rxe6 {[%clk 0:01:09]} 30. Rxe6+ {[%clk 0:00:51.7]} 30... Kxe6
{[%clk 0:01:09.9]} 31. Nxg5+ {[%clk 0:00:52.4]} 31... Kd5 {[%clk 0:01:10.4]} 32.
Rf4 {[%clk 0:00:49.7]} 32... Ke5 {[%clk 0:01:00.3]} 33. Rxh4 {[%clk 0:00:48.4]}
33... Rg8 {[%clk 0:00:59.2]} 34. Nf7+ {[%clk 0:00:39.8]} 34... Ke6 {[%clk
0:00:52.6]} 35. Nh6 {[%clk 0:00:39.5]} 35... Rg3 {[%clk 0:00:53.2]} 36. Nxf5
{[%clk 0:00:38.8]} 36... Kxf5 {[%clk 0:00:54.1]} 37. Rh5+ {[%clk 0:00:29.5]}
37... Kg6 {[%clk 0:00:51.1]} 38. Rd5 {[%clk 0:00:25.6]} 38... Rxb3 {[%clk
0:00:51.1]} 39. Rd2 {[%clk 0:00:26.5]} 39... a5 {[%clk 0:00:49.9]} 40. Kh2
{[%clk 0:00:24.3]} 40... a4 {[%clk 0:00:49.8]} 41. h4 {[%clk 0:00:23.5]} 41...
Kh5 {[%clk 0:00:45.2]} 42. g3 {[%clk 0:00:20.7]} 42... b5 {[%clk 0:00:44.9]} 43.
Kh3 {[%clk 0:00:20.8]} 43... b4 {[%clk 0:00:45.3]} 44. Rd5+ {[%clk 0:00:20]}
44... Kg6 {[%clk 0:00:45.2]} 45. Ra5 {[%clk 0:00:20.5]} 45... a3 {[%clk
0:00:31.2]} 46. bxa3 {[%clk 0:00:21.4]} 46... bxa3 {[%clk 0:00:32.1]} 47. h5+
{[%clk 0:00:21.4]} 47... Kh6 {[%clk 0:00:31.7]} 48. Kh4 {[%clk 0:00:22]} 48...
Kg7 {[%clk 0:00:22.5]} 49. g4 {[%clk 0:00:21.9]} 49... Kf6 {[%clk 0:00:23.1]}
50. Ra6+ {[%clk 0:00:21.6]} 50... Ke5 {[%clk 0:00:18.9]} 51. h6 {[%clk
0:00:22.1]} 51... Kf4 {[%clk 0:00:17.2]} 52. Ra4+ {[%clk 0:00:21.2]} 52... Ke5
{[%clk 0:00:17.2]} 53. Kg5 {[%clk 0:00:21.8]} 53... Kd5 {[%clk 0:00:17.2]} 54.
h7 {[%clk 0:00:21]} 54... Rh3 {[%clk 0:00:17.8]} 55. Kg6 {[%clk 0:00:20.9]}
55... Kc5 {[%clk 0:00:18.2]} 56. Rxa3 {[%clk 0:00:20.9]} 1-0

[Event "Early-Titled-Tuesday-Blitz-February-06-2024"]
[Site "Chess.com"]
[Date "2024.02.06"]
[Round "4"]
[White "Kopytkin"]
[Black "AnaKuchava"]
[Result "0-1"]
[WhiteElo "2369"]
[BlackElo "2196"]
[TimeControl "180+1"]
[EndTime "8:40:03 PST"]
[Termination "AnaKuchava won by checkmate"]

1. d4 {[%clk 0:03:00.9]} 1... d5 {[%clk 0:02:55.9]} 2. Bg5 {[%clk 0:02:58.3]}
2... Bf5 {[%clk 0:02:51.2]} 3. e3 {[%clk 0:02:57.9]} 3... c6 {[%clk 0:02:49.8]}
4. c4 {[%clk 0:02:56.5]} 4... e6 {[%clk 0:02:48.6]} 5. Nc3 {[%clk 0:02:55.8]}
5... Qxg5 {[%clk 0:02:47]} 6. Qb3 {[%clk 0:02:54.5]} 6... Qe7 {[%clk 0:02:43]}
7. Rc1 {[%clk 0:02:48.3]} 7... Nf6 {[%clk 0:02:38.7]} 8. c5 {[%clk 0:02:46.3]}
8... Ne4 {[%clk 0:02:32.5]} 9. Na4 {[%clk 0:02:38.5]} 9... Qc7 {[%clk
0:02:08.2]} 10. Ne2 {[%clk 0:02:30.5]} 10... Nd7 {[%clk 0:02:05.7]} 11. f4
{[%clk 0:02:29.6]} 11... Be7 {[%clk 0:02:01.6]} 12. Nac3 {[%clk 0:02:24.2]}
12... O-O {[%clk 0:01:59.3]} 13. Nxe4 {[%clk 0:02:19.5]} 13... Bxe4 {[%clk
0:02:00.2]} 14. Nc3 {[%clk 0:02:18.7]} 14... Bh4+ {[%clk 0:01:54.7]} 15. Kd2
{[%clk 0:02:16.5]} 15... Rae8 {[%clk 0:01:48.3]} 16. Be2 {[%clk 0:01:57.1]}
16... Bd8 {[%clk 0:01:35.6]} 17. Nxe4 {[%clk 0:01:44.6]} 17... dxe4 {[%clk
0:01:34.7]} 18. Qc2 {[%clk 0:01:45.5]} 18... f6 {[%clk 0:01:24.8]} 19. Bc4
{[%clk 0:01:45]} 19... Kh8 {[%clk 0:01:24]} 20. Qxe4 {[%clk 0:01:33.7]} 20... e5
{[%clk 0:01:22.7]} 21. fxe5 {[%clk 0:01:22.4]} 21... fxe5 {[%clk 0:01:19.6]} 22.
Rhf1 {[%clk 0:01:21]} 22... Nf6 {[%clk 0:01:02.7]} 23. Qf5 {[%clk 0:01:11.7]}
23... exd4 {[%clk 0:01:02.5]} 24. exd4 {[%clk 0:01:09.7]} 24... Be7 {[%clk
0:00:29.8]} 25. Rce1 {[%clk 0:01:04.7]} 25... Qxh2 {[%clk 0:00:24.1]} 26. Rh1
{[%clk 0:00:58.2]} 26... Qxg2+ {[%clk 0:00:24.2]} 27. Re2 {[%clk 0:00:58.5]}
27... Ne4+ {[%clk 0:00:17.6]} 28. Qxe4 {[%clk 0:00:56.8]} 28... Qxe4 {[%clk
0:00:16.6]} 29. Rxe4 {[%clk 0:00:56.8]} 29... Bg5+ {[%clk 0:00:17.3]} 30. Kc3
{[%clk 0:00:52.1]} 30... Rxe4 {[%clk 0:00:16.6]} 31. Bd3 {[%clk 0:00:43]} 31...
Rh4 {[%clk 0:00:16.5]} 32. Rd1 {[%clk 0:00:32.4]} 32... Bf6 {[%clk 0:00:15.1]}
33. Bc4 {[%clk 0:00:30.9]} 33... Rd8 {[%clk 0:00:15]} 34. b4 {[%clk 0:00:28.3]}
34... Rhxd4 {[%clk 0:00:14]} 35. Rxd4 {[%clk 0:00:27.9]} 35... Bxd4+ {[%clk
0:00:12.7]} 36. Kb3 {[%clk 0:00:28.4]} 36... h5 {[%clk 0:00:12.5]} 37. a4 {[%clk
0:00:28.8]} 37... h4 {[%clk 0:00:12.6]} 38. Be6 {[%clk 0:00:29.4]} 38... g5
{[%clk 0:00:12.3]} 39. a5 {[%clk 0:00:28.5]} 39... Re8 {[%clk 0:00:11.9]} 40.
Bd7 {[%clk 0:00:27.9]} 40... Re3+ {[%clk 0:00:11.5]} 41. Kc4 {[%clk 0:00:28.3]}
41... Be5 {[%clk 0:00:11]} 42. a6 {[%clk 0:00:27.5]} 42... bxa6 {[%clk 0:00:11]}
43. Bxc6 {[%clk 0:00:27.9]} 43... h3 {[%clk 0:00:11.6]} 44. Kd5 {[%clk
0:00:19.6]} 44... h2 {[%clk 0:00:11.2]} 45. Ke6 {[%clk 0:00:19.9]} 45... Re1
{[%clk 0:00:10.2]} 46. Kd7 {[%clk 0:00:20.2]} 46... Bf4 {[%clk 0:00:10.2]} 47.
Kc8 {[%clk 0:00:20.1]} 47... h1=Q {[%clk 0:00:10.6]} 48. Kb7 {[%clk 0:00:20]}
48... Qh3 {[%clk 0:00:08.8]} 49. Kxa6 {[%clk 0:00:19.3]} 49... Qe6 {[%clk
0:00:09]} 50. b5 {[%clk 0:00:19.1]} 50... Ra1+ {[%clk 0:00:08.1]} 51. Kb7 {[%clk
0:00:19.4]} 51... Qe7+ {[%clk 0:00:08.4]} 52. Ka8 {[%clk 0:00:18.8]} 52... Qd8+
{[%clk 0:00:08.6]} 53. Kb7 {[%clk 0:00:18.5]} 53... Qb8# {[%clk 0:00:09.2]} 0-1

[Event "Early-Titled-Tuesday-Blitz-February-06-2024"]
[Site "Chess.com"]
[Date "2024.02.06"]
[Round "4"]
[White "Bauman_Guy"]
[Black "HalfIsCrayfish"]
[Result "1-0"]
[WhiteElo "2852"]
[BlackElo "2581"]
[TimeControl "180+1"]
[EndTime "8:40:04 PST"]
[Termination "Bauman_Guy won by resignation"]

1. e4 {[%clk 0:03:00.9]} 1... Nc6 {[%clk 0:02:57.9]} 2. d4 {[%clk 0:03:00.2]}
2... d5 {[%clk 0:02:58.1]} 3. e5 {[%clk 0:03:00.5]} 3... Bf5 {[%clk 0:02:57]} 4.
c3 {[%clk 0:03:00.8]} 4... f6 {[%clk 0:02:56.4]} 5. f4 {[%clk 0:03:01.1]} 5...
Qd7 {[%clk 0:02:55.9]} 6. Bd3 {[%clk 0:03:01.2]} 6... Nh6 {[%clk 0:02:53.4]} 7.
Ne2 {[%clk 0:03:01.1]} 7... O-O-O {[%clk 0:02:47.2]} 8. O-O {[%clk 0:03:00.4]}
8... e6 {[%clk 0:02:44.6]} 9. b4 {[%clk 0:03:00.4]} 9... fxe5 {[%clk 0:02:43.8]}
10. fxe5 {[%clk 0:03:00.4]} 10... Bxd3 {[%clk 0:02:43.2]} 11. Qxd3 {[%clk
0:03:01.1]} 11... Nf5 {[%clk 0:02:43.3]} 12. Nd2 {[%clk 0:03:01.3]} 12... Be7
{[%clk 0:02:40.2]} 13. a4 {[%clk 0:03:01]} 13... Rdf8 {[%clk 0:02:37.4]} 14. Nb3
{[%clk 0:02:54.2]} 14... Nh4 {[%clk 0:02:26.6]} 15. Bd2 {[%clk 0:02:49.6]} 15...
Ng6 {[%clk 0:02:18.4]} 16. b5 {[%clk 0:02:48.4]} 16... Nd8 {[%clk 0:02:15.4]}
17. a5 {[%clk 0:02:41.4]} 17... Rxf1+ {[%clk 0:02:15.2]} 18. Kxf1 {[%clk
0:02:41.3]} 18... Rf8+ {[%clk 0:02:15.3]} 19. Kg1 {[%clk 0:02:41.8]} 19... Qe8
{[%clk 0:02:06.6]} 20. b6 {[%clk 0:02:24.1]} 20... axb6 {[%clk 0:01:50.8]} 21.
axb6 {[%clk 0:02:24]} 21... c6 {[%clk 0:01:51.5]} 22. Bg5 {[%clk 0:01:33.7]}
22... Kd7 {[%clk 0:01:21]} 23. Bxe7 {[%clk 0:01:24.1]} 23... Kxe7 {[%clk
0:01:21.9]} 24. Nc5 {[%clk 0:00:58.1]} 24... Qf7 {[%clk 0:01:20.2]} 25. Qe3
{[%clk 0:00:52.9]} 25... h6 {[%clk 0:01:11.2]} 26. Ng3 {[%clk 0:00:40.9]} 26...
Nh4 {[%clk 0:01:00.7]} 27. Rf1 {[%clk 0:00:35.1]} 27... Qe8 {[%clk 0:00:54.1]}
28. Rf4 {[%clk 0:00:31.4]} 28... g5 {[%clk 0:00:47.1]} 29. Rf2 {[%clk 0:00:29]}
29... Qg6 {[%clk 0:00:29.1]} 30. Rxf8 {[%clk 0:00:27.3]} 30... Kxf8 {[%clk
0:00:30]} 31. Qf2+ {[%clk 0:00:24.3]} 31... Ke7 {[%clk 0:00:30.1]} 32. h3 {[%clk
0:00:22.3]} 32... Qf7 {[%clk 0:00:18.2]} 33. Qxf7+ {[%clk 0:00:16.2]} 33... Kxf7
{[%clk 0:00:19.1]} 34. Kf1 {[%clk 0:00:16.7]} 34... Ng6 {[%clk 0:00:18.5]} 35.
Ne2 {[%clk 0:00:16.4]} 35... Nf8 {[%clk 0:00:17.7]} 36. Nc1 {[%clk 0:00:15.2]}
36... Ke7 {[%clk 0:00:18.3]} 37. N1d3 {[%clk 0:00:15.3]} 37... Nd7 {[%clk
0:00:17.6]} 38. Nxd7 {[%clk 0:00:15.5]} 38... Kxd7 {[%clk 0:00:18.5]} 39. Nc5+
{[%clk 0:00:16.1]} 39... Ke7 {[%clk 0:00:19.1]} 40. Kf2 {[%clk 0:00:16.1]} 40...
Kf7 {[%clk 0:00:19]} 41. Ke3 {[%clk 0:00:16.1]} 41... Kg6 {[%clk 0:00:19.1]} 42.
g4 {[%clk 0:00:13.8]} 42... Kf7 {[%clk 0:00:16]} 43. Kd3 {[%clk 0:00:14.2]}
43... Ke7 {[%clk 0:00:14.7]} 44. Kc2 {[%clk 0:00:14.7]} 44... Ke8 {[%clk
0:00:04.2]} 45. Kb3 {[%clk 0:00:14.8]} 45... Ke7 {[%clk 0:00:04.8]} 46. Kb4
{[%clk 0:00:15.4]} 46... Ke8 {[%clk 0:00:03.7]} 47. Ka5 {[%clk 0:00:16.1]} 47...
Ke7 {[%clk 0:00:04.4]} 48. Nxb7 {[%clk 0:00:12.1]} 48... Nxb7+ {[%clk
0:00:05.2]} 49. Ka6 {[%clk 0:00:12.8]} 49... Nd8 {[%clk 0:00:01.9]} 50. b7
{[%clk 0:00:13.2]} 50... Nxb7 {[%clk 0:00:02.4]} 51. Kxb7 {[%clk 0:00:13.8]}
51... Kd7 {[%clk 0:00:03.1]} 52. Kb6 {[%clk 0:00:14]} 1-0

[Event "Early-Titled-Tuesday-Blitz-February-06-2024"]
[Site "Chess.com"]
[Date "2024.02.06"]
[Round "4"]
[White "JoliyRoger"]
[Black "Laico"]
[Result "1-0"]
[WhiteElo "2528"]
[BlackElo "2380"]
[TimeControl "180+1"]
[EndTime "8:40:04 PST"]
[Termination "JoliyRoger won on time"]

1. d4 {[%clk 0:03:00.9]} 1... e6 {[%clk 0:02:58.6]} 2. c4 {[%clk 0:02:58.4]}
2... f5 {[%clk 0:02:58.2]} 3. Nf3 {[%clk 0:02:58.5]} 3... b6 {[%clk 0:02:56.9]}
4. g3 {[%clk 0:02:42.9]} 4... Bb7 {[%clk 0:02:56.5]} 5. Bg2 {[%clk 0:02:43.5]}
5... Nf6 {[%clk 0:02:57.4]} 6. O-O {[%clk 0:02:43.9]} 6... Be7 {[%clk
0:02:58.2]} 7. b3 {[%clk 0:02:41.8]} 7... O-O {[%clk 0:02:58]} 8. Ba3 {[%clk
0:02:42.4]} 8... Bxa3 {[%clk 0:02:55.6]} 9. Nxa3 {[%clk 0:02:42.9]} 9... Qe7
{[%clk 0:02:56.1]} 10. Nb1 {[%clk 0:02:43.4]} 10... d6 {[%clk 0:02:54.7]} 11.
Qc2 {[%clk 0:02:38.9]} 11... Nbd7 {[%clk 0:02:50.7]} 12. Nc3 {[%clk 0:02:29.4]}
12... Ne4 {[%clk 0:02:38.8]} 13. Ne1 {[%clk 0:02:17.6]} 13... Ndf6 {[%clk
0:02:37.9]} 14. Nd3 {[%clk 0:02:11.4]} 14... c5 {[%clk 0:02:30.4]} 15. dxc5
{[%clk 0:02:06.1]} 15... bxc5 {[%clk 0:02:17.4]} 16. Nf4 {[%clk 0:01:53.3]}
16... Nxc3 {[%clk 0:02:14]} 17. Qxc3 {[%clk 0:01:51.3]} 17... Bxg2 {[%clk
0:02:10.7]} 18. Kxg2 {[%clk 0:01:51.8]} 18... e5 {[%clk 0:02:03.4]} 19. Nd3
{[%clk 0:01:41.9]} 19... f4 {[%clk 0:02:03.2]} 20. Ne1 {[%clk 0:01:26.9]} 20...
Ne4 {[%clk 0:01:56.7]} 21. Qc2 {[%clk 0:01:26.6]} 21... Ng5 {[%clk 0:01:55.1]}
22. Nf3 {[%clk 0:01:06.8]} 22... Nxf3 {[%clk 0:01:42.8]} 23. exf3 {[%clk
0:01:05.5]} 23... Rf6 {[%clk 0:01:35.1]} 24. Rad1 {[%clk 0:00:57.8]} 24... Raf8
{[%clk 0:01:34.7]} 25. Qe4 {[%clk 0:00:58.2]} 25... Kh8 {[%clk 0:01:17.2]} 26.
Rd3 {[%clk 0:00:55.3]} 26... fxg3 {[%clk 0:00:22.2]} 27. fxg3 {[%clk 0:00:54.8]}
27... g5 {[%clk 0:00:22.5]} 28. Rfd1 {[%clk 0:00:48.1]} 28... Kg7 {[%clk
0:00:15.7]} 29. a3 {[%clk 0:00:46]} 29... Rb8 {[%clk 0:00:15.2]} 30. R1d2 {[%clk
0:00:42]} 30... Rb6 {[%clk 0:00:14.4]} 31. Re2 {[%clk 0:00:39]} 31... Qf7 {[%clk
0:00:14.5]} 32. Rb2 {[%clk 0:00:31.9]} 32... Qg6 {[%clk 0:00:14.6]} 33. b4
{[%clk 0:00:20.1]} 33... Qxe4 {[%clk 0:00:13.8]} 34. fxe4 {[%clk 0:00:20.7]}
34... Kf7 {[%clk 0:00:12.4]} 35. b5 {[%clk 0:00:20.8]} 35... Ke7 {[%clk
0:00:12.4]} 36. a4 {[%clk 0:00:21.5]} 36... Rb8 {[%clk 0:00:12.5]} 37. a5 {[%clk
0:00:21.9]} 37... Rb7 {[%clk 0:00:10.5]} 38. Rf2 {[%clk 0:00:20.8]} 38... Rxf2+
{[%clk 0:00:08.3]} 39. Kxf2 {[%clk 0:00:21.4]} 39... Rb8 {[%clk 0:00:08.3]} 40.
Rf3 {[%clk 0:00:21.8]} 40... h6 {[%clk 0:00:06.9]} 41. Rf5 {[%clk 0:00:21.8]}
41... Rb7 {[%clk 0:00:05.1]} 42. Kf3 {[%clk 0:00:21.7]} 42... Rb8 {[%clk
0:00:03.7]} 43. Kg4 {[%clk 0:00:22.3]} 43... Rc8 {[%clk 0:00:01.7]} 44. Kh5
{[%clk 0:00:21.7]} 44... Rh8 {[%clk 0:00:02.4]} 45. Kg6 {[%clk 0:00:17.5]} 45...
Ke6 {[%clk 0:00:02.8]} 46. Kg7 {[%clk 0:00:16.9]} 46... Rd8 {[%clk 0:00:02.1]}
47. Kxh6 {[%clk 0:00:16.4]} 47... g4 {[%clk 0:00:01.8]} 48. Kg5 {[%clk
0:00:14.1]} 48... Rh8 {[%clk 0:00:01.6]} 49. Rf6+ {[%clk 0:00:13.5]} 49... Ke7
{[%clk 0:00:01.5]} 50. Rg6 {[%clk 0:00:14.1]} 1-0